fUST/lending_fUST_20250921
["ID","MTS","AMOUNT","RATE_DAILY","PERIOD"]
[386557413,1758391832477,-480.0,0.00020607,2]
[386557414,1758391832486,-1382.61,0.00020607,2]
[386557415,1758391832495,-480.0,0.00020607,2]
[386557416,1758391832505,-480.0,0.00020607,2]
[386557417,1758391832514,-480.0,0.00020607,2]
[386557418,1758391832523,-480.0,0.00020607,2]
[386557419,1758391832533,-480.0,0.00020607,2]
[386557420,1758391832543,-480.0,0.00020607,2]
[386557421,1758391832552,-480.0,0.00020607,2]
[386557422,1758391832562,-582.57201941,0.00020607,2]
[386557423,1758391832572,-1600.88,0.00020607,2]
[386557424,1758391832582,-480.0,0.00020607,2]
[386557425,1758391832591,-480.0,0.00020607,2]
[386557426,1758391832600,-480.0,0.00020607,2]
[386557427,1758391832610,-17275.49769383,0.00020607,2]
[386557428,1758391832619,-480.0,0.00020609,2]
[386557429,1758391832628,-480.0,0.00020609,2]
[386557430,1758391832638,-480.0,0.00020609,2]
[386557431,1758391832647,-480.0,0.00020609,2]
[386557432,1758391832656,-480.0,0.00020609,2]
[386557433,1758391832665,-511.23,0.00020609,2]
[386557434,1758391832674,-1347.02,0.00020609,2]
[386557435,1758391832683,-1455.23,0.00020609,2]
[386557436,1758391832692,-506.95209841,0.00020609,2]
[386557438,1758391832701,-480.0,0.00020609,2]
[386557448,1758391832710,-480.0,0.00020609,2]
[386557451,1758391832825,-160.0,0.0002061,2]
[386557453,1758391832835,-1467.68,0.0002061,2]
[386557455,1758391832844,-480.0,0.0002061,2]
[386557457,1758391832854,-480.0,0.0002061,2]
[386557459,1758391832863,-498.85,0.0002061,2]
[386557461,1758391832873,-498.85,0.0002061,2]
[386557463,1758391832882,-618.88,0.0002061,2]
[386557465,1758391832891,-1480.89,0.0002061,2]
[386557467,1758391832900,-480.0,0.0002061,2]
[386557469,1758391832910,-474.41344955,0.0002061,2]
[386557471,1758391832919,-480.0,0.0002061,2]
[386557473,1758391832930,-1070.17,0.0002061,2]
[386557475,1758391832939,-1357.77,0.0002061,2]
[386557477,1758391832948,-480.0,0.0002061,2]
[386557479,1758391832957,-480.0,0.0002061,2]
[386557481,1758391832967,-1299.55,0.0002061,2]
[386557483,1758391832976,-480.0,0.0002061,2]
[386557485,1758391832985,-480.0,0.0002061,2]
[386557486,1758391832995,-8450.5459469,0.0002061,2]
[386557488,1758391833005,-516.93,0.0002061,2]
[386557491,1758391833016,-480.0,0.0002061,2]
[386557492,1758391833025,-766.72,0.0002061,2]
[386557494,1758391833035,-480.0,0.0002061,2]
[386557496,1758391833044,-480.0,0.0002061,2]
[386557499,1758391833053,-2807.47,0.0002061,2]
[386557501,1758391833065,-480.0,0.0002061,2]
[386557503,1758391833075,-480.11,0.0002061,2]
[386557505,1758391833085,-480.0,0.0002061,2]
[386557507,1758391833094,-480.0,0.00020611,2]
[386557509,1758391833104,-2894.36,0.00020611,2]
[386557511,1758391833114,-1629.49,0.00020611,2]
[386557513,1758391833123,-480.0,0.00020611,2]
[386557515,1758391833133,-2134.98,0.00020611,2]
[386557517,1758391833142,-1000.0,0.00020611,2]
[386557518,1758391833151,-819.0425422,0.00020611,2]
[386557520,1758391833162,-181.653,0.00020612,2]
[386557522,1758391833172,-869.78,0.00020612,3]
[386557524,1758391833182,-1064.5289748,0.00020613,2]
[386557527,1758391833192,-480.0,0.00020613,2]
[386557529,1758391833201,-389.42782817,0.00020613,2]
[386557531,1758391833210,-3139.5081942,0.00020613,2]
[386557533,1758391833219,-7369.5704125,0.00020613,2]
[386557535,1758391833230,-480.0,0.00020616,2]
[386557537,1758391833239,-500.0,0.00020617,2]
[386557539,1758391833250,-480.0,0.00020617,2]
[386557541,1758391833260,-480.0,0.00020617,2]
[386557543,1758391833270,-480.0,0.00020617,2]
[386557545,1758391833280,-480.0,0.00020617,2]
[386557547,1758391833290,-480.0,0.00020617,2]
[386557549,1758391833300,-482.28867914,0.00020617,2]
[386557551,1758391833311,-625.29805358,0.00020617,2]
[386557552,1758391833328,-1051.11,0.00020617,2]
[386557553,1758391833339,-480.0,0.00020617,2]
[386557554,1758391833350,-480.0,0.00020617,2]
[386557555,1758391833359,-480.0,0.00020617,2]
[386557556,1758391833369,-480.0,0.00020617,2]
[386557557,1758391833381,-480.0,0.00020617,2]
[386557558,1758391833392,-480.0,0.00020617,2]
[386557559,1758391833402,-480.0,0.00020617,2]
[386557560,1758391833411,-607.92398858,0.00020617,2]
[386557561,1758391833422,-481.15540265,0.00020617,2]
[386557562,1758391833433,-627.53196498,0.00020617,2]
[386557563,1758391833443,-480.0,0.00020617,2]
[386557564,1758391833453,-480.0,0.00020617,2]
[386557565,1758391833463,-609.31,0.00020617,2]
[386557566,1758391833474,-480.0,0.00020617,2]
[386557567,1758391833485,-569.52,0.00020617,2]
[386557568,1758391833495,-594.87,0.00020617,2]
[386557569,1758391833506,-480.0,0.00020617,2]
[386557570,1758391833516,-488.99043806,0.00020617,2]
[386557571,1758391833526,-798.82,0.00020617,2]
[386557572,1758391833535,-480.0,0.00020617,2]
[386557573,1758391833545,-216.61605116,0.00020617,2]
[386557574,1758391833555,-480.0,0.00020617,2]
[386557575,1758391833565,-480.0,0.00020617,2]
[386557576,1758391833574,-634.7,0.00020617,2]
[386557577,1758391833585,-480.0,0.00020617,2]
[386557578,1758391833595,-480.0,0.00020617,2]
[386557579,1758391833605,-480.0,0.00020617,2]
[386557580,1758391833614,-480.0,0.00020617,2]
[386557581,1758391833624,-480.0,0.00020617,2]
[386557582,1758391833634,-480.0,0.00020617,2]
[386557583,1758391833643,-480.0,0.00020617,2]
[386557584,1758391833653,-1057.16,0.00020617,2]
[386557585,1758391833662,-480.0,0.00020617,2]
[386557586,1758391833671,-480.0,0.00020617,2]
[386557587,1758391833681,-480.0,0.00020617,2]
[386557588,1758391833691,-480.0,0.00020617,2]
[386557589,1758391833700,-500.0,0.00020617,2]
[386557590,1758391833710,-480.0,0.00020617,2]
[386557591,1758391833719,-480.0,0.00020617,2]
[386557592,1758391833729,-480.0,0.00020617,2]
[386557593,1758391833739,-480.0,0.00020617,2]
[386557594,1758391833749,-480.0,0.00020617,2]
[386557595,1758391833759,-480.0,0.00020617,2]
[386557596,1758391833769,-480.0,0.00020617,2]
[386557597,1758391833779,-480.0,0.00020617,2]
[386557598,1758391833789,-480.0,0.00020617,2]
[386557599,1758391833799,-608.84126728,0.00020617,2]
[386557600,1758391833808,-480.0,0.00020617,2]
[386557601,1758391833818,-480.0,0.00020617,2]
[386557602,1758391833828,-480.0,0.00020617,2]
[386557603,1758391833838,-480.0,0.00020617,2]
[386557604,1758391833847,-480.0,0.00020617,2]
[386557605,1758391833859,-524.17,0.00020618,2]
[386557606,1758391833869,-480.0,0.00020618,2]
[386557607,1758391833878,-480.0,0.00020618,2]
[386557608,1758391833888,-480.0,0.00020618,2]
[386557609,1758391833898,-481.04,0.00020618,2]
[386557610,1758391833910,-480.0,0.00020618,2]
[386557611,1758391833919,-480.0,0.00020618,2]
[386557612,1758391833929,-486.66550178,0.00020618,2]
[386557613,1758391833939,-497.55366561,0.00020618,2]
[386557614,1758391833949,-480.0,0.00020618,2]
[386557615,1758391833958,-480.0,0.00020618,2]
[386557616,1758391833968,-480.0,0.00020618,2]
[386557617,1758391833977,-480.0,0.00020618,2]
[386557618,1758391833987,-480.0,0.00020618,2]
[386557619,1758391833997,-480.0,0.00020618,2]
[386557620,1758391834006,-480.0,0.00020618,2]
[386557621,1758391834016,-480.0,0.00020618,2]
[386557622,1758391834026,-480.0,0.00020618,2]
[386557623,1758391834036,-480.0,0.00020618,2]
[386557624,1758391834045,-480.0,0.00020618,2]
[386557625,1758391834054,-1113.99,0.00020618,2]
[386557626,1758391834063,-543.70766792,0.00020618,2]
[386557627,1758391834073,-480.0,0.00020618,2]
[386557628,1758391834083,-480.0,0.00020618,2]
[386557629,1758391834093,-2064.05,0.00020618,2]
[386557630,1758391834102,-151.0,0.00020618,2]
[386557631,1758391834112,-416.447618,0.00020618,2]
[386557632,1758391834121,-416.447618,0.00020618,2]
[386557633,1758391834130,-151.0,0.00020618,2]
[386557634,1758391834139,-151.0,0.00020618,2]
[386557635,1758391834148,-416.447618,0.00020618,2]
[386557636,1758391834158,-480.0,0.00020619,2]
[386557637,1758391834167,-12781.24,0.00020619,2]
[386557638,1758391834178,-618.29,0.00020619,2]
[386557639,1758391834189,-480.0,0.00020619,2]
[386557640,1758391834198,-1185.5,0.00020619,2]
[386557641,1758391834207,-480.0,0.00020619,2]
[386557642,1758391834217,-1149.49,0.0002062,2]
[386557643,1758391834227,-181.65498241,0.0002062,2]
[386557644,1758391834236,-151.0,0.00020622,2]
[386557645,1758391834246,-451.0,0.00020622,2]
[386557646,1758391834255,-151.0,0.00020622,2]
[386557647,1758391834265,-158.02562066,0.00020622,2]
[386557648,1758391834275,-152.63281683,0.00020622,2]
[386557649,1758391834284,-151.0,0.00020622,2]
[386557650,1758391834294,-466.47,0.00020637,2]
[386557651,1758391834304,-368.0,0.00020653,2]
[386557652,1758391834314,-368.0,0.00020664,2]
[386557653,1758391834329,-168.0,0.00020668,2]
[386557654,1758391834339,-579.82,0.00020685,3]
[386557655,1758391834349,-289.91,0.00020685,3]
[386557656,1758391834359,-1600.0,0.00020686,2]
[386557657,1758391834369,-332.9116088,0.00020693,2]
[386557658,1758391834378,-1159.65,0.00020695,3]
[386557659,1758391834389,-192.438483,0.000207,2]
[386557660,1758391834398,-850.324692,0.00020705,2]
[386557661,1758391834409,-850.324692,0.00020705,2]
[386557662,1758391834419,-850.324692,0.00020705,2]
[386557663,1758391834429,-151.0,0.00020705,2]
[386557664,1758391834439,-850.324692,0.00020705,2]
[386557665,1758391834450,-151.0,0.00020705,2]
[386557666,1758391834459,-151.0,0.00020705,2]
[386557667,1758391834469,-151.0,0.00020705,2]
[386557668,1758391834479,-5000.0,0.00020705,2]
[386557669,1758391834489,-168.0,0.00020709,2]
[386557670,1758391834499,-374.46049729,0.00020737,2]
[386557671,1758391834508,-265.0,0.00020756,2]
[386557672,1758391834518,-17742.89892785,0.00020793,2]
[386557673,1758391834527,-151.0,0.00020793,2]
[386557674,1758391834537,-151.0,0.00020793,2]
[386557675,1758391834546,-151.0,0.00020793,2]
[386557676,1758391834556,-151.0,0.00020793,2]
[386557677,1758391834565,-151.0,0.00020793,2]
[386557678,1758391834575,-151.0,0.00020793,2]
[386557679,1758391834585,-151.0,0.00020793,2]
[386557680,1758391834594,-416.447618,0.00020793,2]
[386557681,1758391834604,-416.447618,0.00020793,2]
[386557682,1758391834613,-151.0,0.00020793,2]
[386557683,1758391834623,-151.0,0.00020793,2]
[386557684,1758391834633,-416.447618,0.00020793,2]
[386557685,1758391834643,-2422.5639941,0.00020796,3]
[386557686,1758391834653,-151.0,0.00020796,2]
[386557687,1758391834663,-151.0,0.00020796,2]
[386557688,1758391834672,-151.0,0.00020796,2]
[386557689,1758391834682,-151.0,0.00020796,2]
[386557690,1758391834691,-151.0,0.00020796,2]
[386557691,1758391834701,-151.0,0.00020796,2]
[386557692,1758391834711,-151.0,0.00020796,2]
[386557693,1758391834721,-151.0,0.00020796,2]
[386557694,1758391834731,-151.0,0.00020796,2]
[386557695,1758391834741,-669.0,0.00020802,2]
[386557696,1758391834751,-578.51628782,0.00020816,2]
[386557697,1758391834760,-500.0,0.00020873,2]
[386557698,1758391834769,-500.0,0.00020873,2]
[386557699,1758391834779,-500.0,0.00020873,2]
[386557700,1758391834788,-500.0,0.00020873,2]
[386557701,1758391834798,-500.0,0.00020873,2]
[386557702,1758391834807,-503.15772695,0.00020873,2]
[386557703,1758391834817,-500.0,0.00020873,2]
[386557704,1758391834826,-522.59623485,0.00020873,2]
[386557705,1758391834836,-500.0,0.00020873,2]
[386557706,1758391834846,-500.0,0.00020873,2]
[386557707,1758391834857,-500.0,0.00020873,2]
[386557708,1758391834867,-500.0,0.00020873,2]
[386557709,1758391834876,-500.0,0.00020873,2]
[386557710,1758391834886,-467.27611667,0.00020881,2]
[386557711,1758391834895,-480.0,0.00020881,2]
[386557712,1758391834905,-536.83,0.00020881,2]
[386557713,1758391834915,-480.0,0.00020881,2]
[386557714,1758391834925,-455.98067858,0.00020881,2]
[386557715,1758391834935,-480.0,0.00020881,2]
[386557716,1758391834945,-480.0,0.00020881,2]
[386557717,1758391834955,-480.0,0.00020881,2]
[386557718,1758391834964,-516.04943425,0.00020881,2]
[386557719,1758391834974,-480.0,0.00020881,2]
[386557720,1758391834984,-480.0,0.00020881,2]
[386557721,1758391834993,-909.97,0.00020881,2]
[386557722,1758391835003,-200.90059931,0.00020881,2]
[386557723,1758391835012,-480.0,0.00020881,2]
[386557724,1758391835022,-525.63,0.00020881,2]
[386557725,1758391835031,-480.0,0.00020881,2]
[386557726,1758391835040,-480.0,0.00020881,2]
[386557727,1758391835049,-480.0,0.00020881,2]
[386557728,1758391835059,-480.0,0.00020881,2]
[386557729,1758391835068,-538.46,0.00020881,2]
[386557730,1758391835077,-1382.61,0.00020881,2]
[386557731,1758391835087,-480.0,0.00020881,2]
[386557732,1758391835188,-480.0,0.00020881,2]
[386557733,1758391835198,-480.0,0.00020881,2]
[386557734,1758391835207,-480.0,0.00020881,2]
[386557735,1758391835220,-480.0,0.00020881,2]
[386557736,1758391835229,-480.0,0.00020881,2]
[386557737,1758391835240,-480.0,0.00020881,2]
[386557738,1758391835249,-1600.88,0.00020881,2]
[386557739,1758391835259,-480.0,0.00020881,2]
[386557740,1758391835269,-372.93551605,0.00020881,2]
[386557741,1758391835279,-190.63398855,0.00020883,2]
[386557742,1758391835290,-480.0,0.00020883,2]
[386557743,1758391835300,-480.0,0.00020883,2]
[386557744,1758391835309,-256.371508,0.00020883,2]
[386557745,1758391835322,-256.371508,0.00020883,2]
[386557746,1758391835331,-151.0,0.00020883,2]
[386557747,1758391835340,-256.371508,0.00020883,2]
[386557748,1758391835350,-151.0,0.00020883,2]
[386557749,1758391835361,-155.381339,0.00020883,2]
[386557750,1758391835371,-256.371508,0.00020883,2]
[386557751,1758391835380,-151.0,0.00020883,2]
[386557752,1758391835391,-209.457852,0.00020883,2]
[386557753,1758391835401,-394.215439,0.00020883,2]
[386557754,1758391835410,-394.215439,0.00020883,2]
[386557755,1758391835420,-394.215439,0.00020883,2]
[386557756,1758391835430,-394.215439,0.00020883,2]
[386557757,1758391835439,-480.0,0.00020883,2]
[386557758,1758391835449,-480.0,0.00020883,2]
[386557759,1758391835458,-511.23,0.00020883,2]
[386557760,1758391835468,-1347.02,0.00020883,2]
[386557761,1758391835477,-1455.23,0.00020883,2]
[386557762,1758391835486,-850.324692,0.00020883,2]
[386557763,1758391835496,-154.85913114,0.00020883,2]
[386557764,1758391835505,-850.324692,0.00020883,2]
[386557765,1758391835515,-850.324692,0.00020883,2]
[386557766,1758391835524,-151.0,0.00020883,2]
[386557767,1758391835534,-850.324692,0.00020883,2]
[386557768,1758391835545,-151.0,0.00020883,2]
[386557769,1758391835555,-151.0,0.00020883,2]
[386557770,1758391835566,-151.0,0.00020883,2]
[386557771,1758391835575,-480.0,0.00020883,2]
[386557772,1758391835585,-151.0,0.00020884,2]
[386557773,1758391835596,-151.0,0.00020884,2]
[386557774,1758391835606,-151.0,0.00020884,2]
[386557775,1758391835616,-163.634668,0.00020884,2]
[386557776,1758391835626,-480.0,0.00020884,2]
[386557777,1758391835634,-1467.68,0.00020884,2]
[386557778,1758391835644,-480.0,0.00020884,2]
[386557779,1758391835653,-498.85,0.00020884,2]
[386557780,1758391835663,-1480.89,0.00020884,2]
[386557781,1758391835672,-480.0,0.00020884,2]
[386557782,1758391835681,-523.25912314,0.00020884,2]
[386557783,1758391835691,-1070.17,0.00020884,2]
[386557784,1758391835700,-1357.77,0.00020884,2]
[386557785,1758391835710,-480.0,0.00020884,2]
[386557786,1758391835719,-480.0,0.00020884,2]
[386557787,1758391835729,-1299.55,0.00020884,2]
[386557788,1758391835738,-151.0,0.00020884,2]
[386557789,1758391835747,-151.0,0.00020884,2]
[386557790,1758391835757,-151.0,0.00020884,2]
[386557791,1758391835766,-480.0,0.00020884,2]
[386557792,1758391835776,-151.0,0.00020884,2]
[386557793,1758391835786,-151.0,0.00020884,2]
[386557794,1758391835795,-151.0,0.00020884,2]
[386557795,1758391835806,-516.93,0.00020884,2]
[386557796,1758391835815,-766.72,0.00020884,2]
[386557797,1758391835825,-480.0,0.00020884,2]
[386557798,1758391835834,-480.0,0.00020884,2]
[386557799,1758391835843,-2807.47,0.00020884,2]
[386557800,1758391835853,-480.0,0.00020884,2]
[386557801,1758391835862,-151.0,0.00020884,2]
[386557802,1758391835871,-416.447618,0.00020884,2]
[386557803,1758391835883,-480.11,0.00020884,2]
[386557804,1758391835892,-416.447618,0.00020884,2]
[386557805,1758391835902,-151.0,0.00020884,2]
[386557806,1758391835911,-151.0,0.00020884,2]
[386557807,1758391835921,-416.447618,0.00020884,2]
[386557808,1758391835933,-151.0,0.00020885,2]
[386557809,1758391835942,-151.0,0.00020885,2]
[386557810,1758391835952,-151.0,0.00020885,2]
[386557811,1758391835962,-151.0,0.00020885,2]
[386557812,1758391835971,-151.0,0.00020885,2]
[386557813,1758391835980,-151.0,0.00020885,2]
[386557814,1758391835990,-151.0,0.00020885,2]
[386557815,1758391835999,-151.0,0.00020885,2]
[386557816,1758391836010,-151.0,0.00020885,2]
[386557817,1758391836019,-151.0,0.00020885,2]
[386557818,1758391836028,-151.0,0.00020885,2]
[386557819,1758391836039,-151.0,0.00020885,2]
[386557820,1758391836048,-327.160766,0.00020885,2]
[386557821,1758391836058,-327.160766,0.00020885,2]
[386557822,1758391836067,-151.0,0.00020885,2]
[386557823,1758391836077,-327.160766,0.00020885,2]
[386557824,1758391836086,-327.160766,0.00020885,2]
[386557825,1758391836095,-151.0,0.00020885,2]
[386557826,1758391836106,-151.0,0.00020885,2]
[386557827,1758391836116,-151.0,0.00020885,2]
[386557828,1758391836126,-151.0,0.00020885,2]
[386557829,1758391836135,-151.0,0.00020885,2]
[386557830,1758391836145,-151.0,0.00020885,2]
[386557831,1758391836154,-218.792117,0.00020885,2]
[386557832,1758391836164,-218.792117,0.00020885,2]
[386557833,1758391836173,-218.792117,0.00020885,2]
[386557834,1758391836183,-218.792117,0.00020885,2]
[386557835,1758391836192,-151.0,0.00020885,2]
[386557836,1758391836202,-206.628109,0.00020885,2]
[386557837,1758391836212,-151.0,0.00020885,2]
[386557838,1758391836221,-151.0,0.00020885,2]
[386557839,1758391836230,-151.0,0.00020885,2]
[386557840,1758391836239,-151.0,0.00020885,2]
[386557841,1758391836249,-151.0,0.00020885,2]
[386557842,1758391836259,-151.0,0.00020885,2]
[386557843,1758391836270,-152.986606,0.00020885,2]
[386557844,1758391836280,-151.0,0.00020885,2]
[386557845,1758391836290,-151.0,0.00020885,2]
[386557846,1758391836300,-152.986606,0.00020885,2]
[386557847,1758391836309,-152.986606,0.00020885,2]
[386557848,1758391836325,-152.986606,0.00020885,2]
[386557849,1758391836334,-151.0,0.00020885,2]
[386557850,1758391836344,-151.0,0.00020885,2]
[386557851,1758391836354,-151.0,0.00020885,2]
[386557852,1758391836364,-282.81868,0.00020885,2]
[386557853,1758391836373,-151.0,0.00020885,2]
[386557854,1758391836383,-151.0,0.00020885,2]
[386557855,1758391836392,-151.0,0.00020885,2]
[386557856,1758391836401,-151.0,0.00020885,2]
[386557857,1758391836411,-151.0,0.00020885,2]
[386557858,1758391836420,-480.0,0.00020885,2]
[386557859,1758391836429,-151.0,0.00020885,2]
[386557860,1758391836439,-151.0,0.00020885,2]
[386557861,1758391836449,-151.0,0.00020885,2]
[386557862,1758391836458,-2894.36,0.00020885,2]
[386557863,1758391836467,-1629.49,0.00020885,2]
[386557864,1758391836478,-480.0,0.00020885,2]
[386557865,1758391836487,-151.0,0.00020885,2]
[386557866,1758391836497,-151.0,0.00020885,2]
[386557867,1758391836506,-151.0,0.00020885,2]
[386557868,1758391836515,-151.0,0.00020885,2]
[386557869,1758391836525,-151.0,0.00020885,2]
[386557870,1758391836534,-151.0,0.00020885,2]
[386557871,1758391836544,-151.0,0.00020885,2]
[386557872,1758391836553,-151.0,0.00020885,2]
[386557873,1758391836562,-277.148617,0.00020885,2]
[386557874,1758391836572,-2134.98,0.00020885,2]
[386557875,1758391836581,-480.0,0.00020887,2]
[386557876,1758391836592,-151.0,0.00020887,2]
[386557877,1758391836601,-151.0,0.00020887,2]
[386557878,1758391836611,-168.0,0.00020889,2]
[386557879,1758391836620,-480.0,0.0002089,2]
[386557880,1758391836629,-151.0,0.0002089,2]
[386557881,1758391836638,-151.0,0.0002089,2]
[386557882,1758391836648,-151.0,0.0002089,2]
[386557883,1758391836657,-151.0,0.0002089,2]
[386557884,1758391836666,-151.0,0.0002089,2]
[386557885,1758391836677,-151.0,0.0002089,2]
[386557886,1758391836687,-151.0,0.0002089,2]
[386557887,1758391836697,-151.0,0.0002089,2]
[386557888,1758391836707,-151.0,0.0002089,2]
[386557889,1758391836717,-151.0,0.0002089,2]
[386557890,1758391836726,-151.0,0.0002089,2]
[386557891,1758391836736,-151.0,0.0002089,2]
[386557892,1758391836746,-151.0,0.0002089,2]
[386557893,1758391836755,-327.160766,0.0002089,2]
[386557894,1758391836765,-327.160766,0.0002089,2]
[386557895,1758391836774,-151.0,0.0002089,2]
[386557896,1758391836783,-327.160766,0.0002089,2]
[386557897,1758391836793,-327.160766,0.0002089,2]
[386557898,1758391836802,-151.0,0.0002089,2]
[386557899,1758391836812,-151.0,0.0002089,2]
[386557900,1758391836821,-151.0,0.0002089,2]
[386557901,1758391836830,-256.371508,0.0002089,2]
[386557902,1758391836840,-256.371508,0.0002089,2]
[386557903,1758391836851,-151.0,0.0002089,2]
[386557904,1758391836861,-256.371508,0.0002089,2]
[386557905,1758391836870,-151.0,0.0002089,2]
[386557906,1758391836879,-256.371508,0.0002089,2]
[386557907,1758391836888,-151.0,0.0002089,2]
[386557908,1758391836898,-394.215439,0.0002089,2]
[386557909,1758391836907,-394.215439,0.0002089,2]
[386557910,1758391836917,-394.215439,0.0002089,2]
[386557911,1758391836926,-394.215439,0.0002089,2]
[386557912,1758391836938,-850.324692,0.0002089,2]
[386557913,1758391836947,-850.324692,0.0002089,2]
[386557914,1758391836956,-850.324692,0.0002089,2]
[386557915,1758391836965,-151.0,0.0002089,2]
[386557916,1758391836976,-850.324692,0.0002089,2]
[386557917,1758391836985,-151.0,0.0002089,2]
[386557918,1758391836995,-151.0,0.0002089,2]
[386557919,1758391837005,-156.144262,0.0002089,2]
[386557920,1758391837014,-1000.0,0.0002089,2]
[386557921,1758391837023,-1000.0,0.0002089,2]
[386557922,1758391837033,-1000.0,0.0002089,2]
[386557923,1758391837042,-1000.0,0.0002089,2]
[386557924,1758391837051,-883.736595,0.0002089,2]
[386557925,1758391837060,-500.0,0.00020891,2]
[386557926,1758391837070,-480.0,0.00020891,2]
[386557927,1758391837079,-216.434772,0.00020891,2]
[386557928,1758391837088,-151.0,0.00020891,2]
[386557929,1758391837097,-151.0,0.00020891,2]
[386557930,1758391837106,-151.0,0.00020891,2]
[386557931,1758391837116,-151.0,0.00020891,2]
[386557932,1758391837125,-1051.11,0.00020891,2]
[386557933,1758391837134,-480.0,0.00020891,2]
[386557934,1758391837143,-267.43532276,0.00020891,2]
[386557935,1758391837153,-480.0,0.00020891,2]
[386557936,1758391837164,-401.15242291,0.00020891,2]
[386557937,1758391837173,-151.0,0.00020891,2]
[386557938,1758391837184,-151.0,0.00020891,2]
[386557939,1758391837194,-151.0,0.00020891,2]
[386557940,1758391837203,-151.0,0.00020891,2]
[386557941,1758391837213,-452.0,0.00020891,2]
[386557942,1758391837224,-151.0,0.00020891,2]
[386557943,1758391837233,-204.61545319,0.00020891,2]
[386557944,1758391837243,-569.52,0.00020891,2]
[386557945,1758391837252,-480.0,0.00020891,2]
[386557946,1758391837344,-151.0,0.00020891,2]
[386557947,1758391837356,-151.0,0.00020891,2]
[386557948,1758391837366,-151.0,0.00020891,2]
[386557949,1758391837376,-798.82,0.00020891,2]
[386557950,1758391837385,-480.0,0.00020891,2]
[386557951,1758391837397,-480.0,0.00020891,2]
[386557952,1758391837407,-480.0,0.00020891,2]
[386557953,1758391837417,-456.86047166,0.00020891,2]
[386557955,1758391837535,-177.83952834,0.00020891,2]
[386557956,1758391837544,-480.0,0.00020891,2]
[386557957,1758391837554,-151.0,0.00020891,2]
[386557958,1758391837565,-151.0,0.00020891,2]
[386557959,1758391837574,-218.792117,0.00020891,2]
[386557960,1758391837584,-218.792117,0.00020891,2]
[386557961,1758391837593,-218.792117,0.00020891,2]
[386557962,1758391837601,-218.792117,0.00020891,2]
[386557963,1758391837611,-570.61202727,0.00020891,2]
[386557964,1758391837621,-151.0,0.00020891,2]
[386557965,1758391837630,-151.0,0.00020891,2]
[386557966,1758391837639,-176.388323,0.00020891,2]
[386557967,1758391837648,-151.0,0.00020891,2]
[386557968,1758391837657,-151.0,0.00020891,2]
[386557969,1758391837666,-152.986606,0.00020891,2]
[386557970,1758391837675,-151.0,0.00020891,2]
[386557971,1758391837687,-151.0,0.00020891,2]
[386557972,1758391837696,-152.986606,0.00020891,2]
[386557973,1758391837705,-152.986606,0.00020891,2]
[386557974,1758391837713,-152.986606,0.00020891,2]
[386557975,1758391837722,-151.0,0.00020891,2]